bitfinex/quotes_ETHUSD_20250720
["timestamp","ask_amount","ask_price","bid_price","bid_amount"]
[1753035803365,0.48333397,3741.2,3740.7,6.96826948]
[1753035803551,0.4709,3741.1,3740.7,2.67326948]
[1753035803755,0.4709,3741.1,3740.6,7.10294082]
[1753035803956,0.4709,3741.1,3740.8,2.67317518]
[1753035804192,0.4709,3741.1,3740.6,7.10295842]
[1753035804193,0.4709,3741.1,3740.6,0.1346]
[1753035804494,0.4709,3741.1,3740.8,2.67316633]
[1753035804668,0.4709,3741.1,3740.9,2.67314264]
[1753035805056,0.1536,3741.2,3741.0,2.67308206]
[1753035805371,0.1536,3741.2,3740.9,2.67312716]
[1753035805892,0.4709,3741.1,3740.9,2.67312716]
[1753035806095,0.1536,3741.2,3741.0,2.67306976]
[1753035806257,0.1536,3741.2,3740.6,0.1346]
[1753035806458,0.1536,3741.2,3741.1,2.67301061]
[1753035806772,0.6245,3741.2,3741.0,2.67306007]
[1753035807094,0.6245,3741.2,3740.8,2.67321507]
[1753035807095,0.4709,3741.1,3740.8,2.67322497]
[1753035808164,0.4342,3741.1,3740.6,0.1346]
[1753035808579,0.1536,3741.2,3740.6,0.1346]
[1753035808872,0.5878,3741.2,3741.0,2.67301559]
[1753035809079,1e-08,3741.5,3741.4,2.67279627]
[1753035809280,0.43420001,3741.5,3741.4,2.67279627]
[1753035810681,1e-08,3741.5,3741.4,2.67279627]
[1753035810883,1e-08,3741.5,3741.4,2.80639627]
[1753035811979,0.58780001,3741.5,3741.4,0.1336]
[1753035812178,0.1336,3741.4,3741.0,2.67305845]
[1753035812409,0.60120995,3741.4,3741.0,2.67305845]
[1753035812614,0.4342,3741.3,3741.0,2.67305845]
[1753035812929,0.4342,3741.3,3740.9,2.67310093]
[1753035813128,0.4342,3741.3,3740.8,2.67322497]
[1753035813312,0.82573918,3741.3,3740.8,2.67322497]
[1753035813633,0.4342,3741.2,3741.0,2.67303651]
[1753035813782,0.46761173,3741.2,3741.0,2.67303651]
[1753035814216,0.4342,3741.1,3741.0,2.67303651]
[1753035814382,0.4342,3741.1,3740.9,2.67312605]
[1753035814582,0.4342,3741.0,3740.9,2.67312605]
[1753035814838,0.1536,3740.9,3740.7,0.1336]
[1753035815132,0.67479441,3740.9,3740.3,0.1336]
[1753035815427,0.1336,3740.7,3740.1,0.1336]
[1753035815782,0.6012162,3740.7,3740.3,2.67353798]
[1753035816010,0.5678,3740.7,3740.4,2.67349507]
[1753035816317,0.5678,3740.7,3740.3,2.67353036]
[1753035816556,0.5678,3740.7,3740.4,2.67351068]
[1753035816722,4.8568,3740.7,3740.2,2.67360088]
[1753035817020,5.405618,3740.7,3740.5,2.67337137]
[1753035817381,5.405618,3740.7,3740.4,2.67349553]
[1753035817990,5.405618,3740.7,3740.3,2.6735533]
[1753035818626,5.405618,3740.7,3740.4,2.67350785]
[1753035819733,1.117618,3740.7,3740.4,2.67350486]
[1753035819931,4.8548,3740.7,3740.1,0.1336]
[1753035820226,4.8548,3740.7,3740.5,2.67343224]
[1753035821504,4.8548,3740.7,3740.1,0.1336]
[1753035821725,4.8548,3740.7,3740.5,2.67339195]
[1753035822937,0.5678,3740.7,3740.1,2.80731028]
[1753035823138,0.5678,3740.7,3740.5,2.67341954]
[1753035823298,4.8538,3740.7,3740.3,2.67352123]
[1753035823827,4.8538,3740.7,3740.2,2.67360622]
[1753035824047,4.8538,3740.7,3740.1,2.8073062]
[1753035824196,4.8538,3740.7,3740.2,2.67364555]
[1753035824402,4.8528,3740.7,3740.2,2.67364555]
[1753035825135,0.5678,3740.7,3740.2,2.67364555]
[1753035825362,4.8528,3740.7,3740.2,2.67364555]
[1753035825562,4.8528,3740.7,3739.9,0.001]
[1753035825563,11.01916091,3740.7,3739.9,0.001]
[1753035825765,15.0918659,3740.7,3739.9,0.001]
[1753035826355,6.73416091,3740.7,3739.9,0.001]
[1753035826551,11.01816091,3740.7,3739.9,0.001]
[1753035828327,1e-08,3741.5,3739.9,0.001]
[1753035828528,0.1328,3743.1,3742.8,2.67179651]
[1753035828838,4.283,3744.0,3742.8,14.69476383]
[1753035829039,4.283,3744.0,3742.8,11.0152015]
[1753035829346,1e-08,3743.0,3742.9,5.67172513]
[1753035829726,1e-08,3743.0,3742.9,8.68148092]
[1753035829930,1e-08,3743.0,3742.9,8.65476367]
[1753035830256,1e-08,3743.9,3743.8,3.48978285]
[1753035830417,1e-08,3743.9,3743.8,9.02082139]
[1753035830751,7.5493018,3743.9,3743.8,2.67108285]
[1753035830951,7.9835018,3743.9,3743.5,2.67124234]
[1753035831175,6.34748487,3743.8,3742.8,0.8187]
[1753035831317,1.94341716,3743.8,3743.7,2.6711542]
[1753035831516,1e-08,3743.9,3743.8,2.67108285]
[1753035831958,1e-08,3743.9,3743.8,5.52128968]
[1753035832769,1e-08,3743.9,3743.8,2.67108285]
[1753035834561,1e-08,3743.9,3743.8,3.12308285]
[1753035834720,1e-08,3743.9,3743.8,3.78704196]
[1753035835260,0.1536,3744.7,3744.5,2.67058164]
[1753035835430,0.1536,3744.7,3744.5,2.67052746]
[1753035835614,0.5878,3744.7,3743.8,1.11595911]
[1753035835819,0.5878,3744.7,3743.6,0.8186]
[1753035836061,0.1536,3744.7,3743.6,1.64356052]
[1753035836358,0.4342,3744.7,3743.7,0.452]
[1753035836583,0.4342,3744.7,3744.1,2.670831]
[1753035836862,0.03334253,3744.6,3743.9,2.67099697]
[1753035837040,0.03334253,3744.6,3743.6,0.8186]
[1753035837249,0.03334253,3744.6,3744.2,2.67078321]
[1753035837552,0.51029678,3744.6,3744.2,2.67078321]
[1753035837860,0.4346,3744.5,3744.1,2.6708534]
[1753035838260,0.4346,3744.4,3744.2,2.67077481]
[1753035838559,0.47695425,3744.6,3744.4,2.67061624]
[1753035838766,0.1328,3744.6,3744.5,2.67058352]
[1753035839329,0.02,3744.9,3744.6,2.67050957]
[1753035839543,0.1528,3744.9,3744.6,2.6704518]
[1753035839935,0.1528,3744.9,3744.7,2.67042353]
[1753035840386,0.1528,3744.9,3744.3,0.1328]
[1753035840741,0.1528,3744.9,3744.8,2.67036957]
[1753035840990,0.02,3744.9,3744.8,2.67036957]
[1753035841279,0.4546,3744.9,3744.8,2.67036957]
[1753035841862,0.4546,3744.9,3744.6,0.1328]
[1753035842263,0.4546,3744.9,3744.6,2.80330068]
[1753035842491,0.02,3744.9,3744.8,2.67036957]
[1753035842786,0.02,3744.9,3744.8,3.77818653]
[1753035842987,0.02,3744.9,3744.8,4.35908653]
[1753035843188,0.02,3744.9,3744.8,3.91098653]
[1753035843387,0.02,3744.9,3744.3,5.1065]
[1753035843569,0.02,3744.9,3744.6,0.1328]
[1753035843773,0.02,3744.9,3744.8,2.67036957]
[1753035844243,0.02,3744.9,3744.8,3.25126957]
[1753035845769,0.02,3744.9,3744.8,2.80316957]
[1753035845971,0.02,3744.9,3744.8,4.24615219]
[1753035846951,0.02,3744.9,3744.8,0.1328]
[1753035847473,0.02,3744.9,3744.8,2.80316957]
[1753035849247,0.02,3744.9,3744.8,0.1328]
[1753035850168,0.4546,3744.9,3744.8,0.1328]
[1753035850559,0.02,3744.9,3744.8,2.80316957]
[1753035852505,0.02,3744.9,3744.8,3.79863178]
[1753035853290,0.02,3744.9,3744.8,4.61073178]
[1753035853498,0.022,3744.9,3744.8,4.61073178]
[1753035854127,1e-08,3744.9,3744.8,4.61073178]
[1753035854327,1e-08,3744.9,3744.8,7.61073178]
[1753035854530,1e-08,3744.9,3744.0,0.8121]
[1753035854830,0.1536,3744.7,3744.0,2.67093553]
[1753035855025,0.03334253,3744.6,3743.8,2.67106315]
[1753035855324,0.03334253,3744.6,3744.0,2.67088796]
[1753035855628,0.03334253,3744.6,3743.6,0.8121]
[1753035855795,2.67077094,3744.3,3743.4,2.67136827]
[1753035855995,0.46794253,3744.2,3743.6,2.67120024]
[1753035856210,0.46794253,3744.2,3743.3,0.8121]
[1753035856409,0.46794253,3744.2,3743.1,0.4481]
[1753035856410,4.4306,3744.1,3743.1,0.19556269]
[1753035856608,2.67109051,3743.8,3743.1,2.69155724]
[1753035856825,0.03334253,3743.7,3743.1,0.02]
[1753035857026,0.4346,3744.0,3743.4,2.6713594]
[1753035857337,0.1536,3744.1,3743.1,0.67249004]
[1753035857509,0.1536,3744.7,3743.5,2.67124781]
[1753035857703,0.1536,3744.7,3744.2,2.67077268]
[1753035857932,0.4346,3744.6,3744.0,2.67092029]
[1753035858228,0.46794253,3744.6,3744.0,2.67092029]
[1753035858408,0.4346,3744.6,3744.2,2.67079362]
[1753035858610,0.4346,3744.6,3743.6,7.66340977]
[1753035858936,0.4346,3744.6,3743.7,0.76634098]
[1753035859352,0.1536,3744.7,3744.4,2.67064297]
[1753035859546,1e-08,3744.9,3744.0,0.7983]
[1753035859747,4.277,3744.8,3744.2,0.4481]
[1753035859915,1e-08,3744.9,3744.2,0.4481]
[1753035860119,1e-08,3744.9,3744.8,2.67036957]
[1753035862460,1e-08,3744.9,3744.5,2.67057675]
[1753035862669,1e-08,3744.9,3744.2,0.4481]
[1753035862670,1e-08,3744.9,3744.8,2.67036957]
[1753035863343,1e-08,3744.9,3744.2,0.47480797]
[1753035863518,1e-08,3744.9,3744.3,0.5550108]
[1753035863962,1e-08,3744.9,3744.6,2.67046528]
[1753035864138,1e-08,3744.9,3744.7,2.67043037]
[1753035864532,1e-08,3744.9,3744.8,2.67036957]
[1753035865758,1e-08,3744.9,3744.7,2.67041929]
[1753035866059,1e-08,3744.9,3744.8,2.67036957]
[1753035866962,1e-08,3744.9,3744.7,2.67039141]
[1753035868072,0.44780001,3744.9,3744.6,2.80326293]
[1753035868383,0.48114253,3744.8,3744.0,2.67093364]
[1753035868533,0.5806,3744.8,3744.2,2.67074619]
[1753035868734,3.85864152,3744.8,3744.2,2.67074619]
[1753035869065,1.18827034,3744.8,3744.2,2.67079741]
[1753035869267,1e-08,3744.9,3744.3,0.02670726]
[1753035869585,1e-08,3744.9,3744.8,2.67036957]
[1753035877373,1e-08,3744.9,3744.6,0.02670512]
[1753035877536,0.4478,3744.8,3744.7,2.67037806]
[1753035877735,0.4478,3744.8,3744.2,0.7809]
[1753035878636,0.4478,3744.8,3744.7,2.67044088]
[1753035879438,2.67053058,3744.6,3744.1,0.001]
[1753035879770,0.63090752,3744.5,3744.1,0.001]
[1753035879973,3.30149867,3744.5,3744.1,0.001]
[1753035880195,0.4478,3744.4,3744.1,0.001]
[1753035880338,0.1536,3744.2,3744.1,0.001]
[1753035880738,3.30554003,3744.2,3744.1,0.001]
[1753035880941,4.29722291,3744.2,3744.1,0.001]
[1753035881471,4.33056544,3744.2,3744.1,0.001]
[1753035886585,1.21196794,3744.2,3744.1,0.001]
[1753035886876,1e-08,3744.9,3744.1,6.86255609]
[1753035887076,0.03334254,3744.9,3744.2,2.67074661]
[1753035887264,0.44780001,3744.9,3744.6,2.67046461]
[1753035887648,0.44780001,3744.9,3744.1,0.001]
[1753035887846,1e-08,3744.9,3744.8,2.67036957]
[1753035888046,1e-08,3744.9,3744.8,3.12816957]
[1753035888948,1e-08,3745.0,3744.9,2.67029827]
[1753035889197,1e-08,3745.0,3744.9,3.92369827]
[1753035889357,1e-08,3745.0,3744.9,4.05649827]
[1753035889555,1e-08,3745.0,3744.9,8.66330913]
[1753035889762,1e-08,3745.0,3744.9,8.63660615]
[1753035890685,3.86540932,3746.0,3745.9,2.66958541]
[1753035890863,2.05856675,3746.0,3745.9,2.91915073]
[1753035891061,0.4478,3746.0,3745.9,2.91915073]
[1753035891258,3.63957253,3746.2,3746.1,2.66944288]
[1753035891483,3.63957253,3746.2,3746.1,0.24956532]
[1753035891792,7.05263231,3746.2,3746.1,0.24956532]
[1753035891995,7.01928978,3746.2,3746.1,0.24956532]
[1753035893289,8.09951725,3746.2,3746.1,0.24956532]
[1753035895784,8.09851725,3746.2,3746.1,0.24956532]
[1753035896591,8.09851725,3746.2,3745.4,2.66993225]
[1753035896806,0.1328,3745.7,3745.5,2.9190741]
[1753035897004,0.1328,3745.7,3745.6,2.91900639]
[1753035897804,0.1328,3745.7,3745.6,2.6697891]
[1753035898817,0.002,3746.2,3746.0,2.66949134]
[1753035898979,4.271,3746.1,3746.0,2.66949134]
[1753035899801,0.1348,3746.2,3746.1,2.66944288]
[1753035900000,0.1348,3746.2,3746.0,2.66948791]
[1753035900001,4.4058,3746.2,3746.0,2.66948791]
[1753035900194,0.03334253,3746.1,3746.0,2.66948791]
[1753035900586,0.03334253,3746.1,3745.9,2.66956865]
[1753035900785,0.1328,3746.1,3746.0,2.66951414]
[1753035900987,4.4028,3746.1,3745.9,2.66957052]
[1753035901513,0.60868334,3746.1,3745.1,0.4615]
[1753035901709,4.27,3746.1,3746.0,2.66949648]
[1753035901885,0.1328,3746.3,3746.2,2.66937162]
[1753035902087,0.002,3746.5,3746.4,2.66922912]
[1753035902677,0.002,3746.5,3746.4,3.13072912]
[1753035903310,1e-08,3746.5,3746.4,6.13072912]
[1753035903609,1e-08,3746.5,3746.4,8.8791148]
[1753035903785,1e-08,3746.9,3746.8,3.46994416]
[1753035903983,1e-08,3746.9,3746.8,7.73894416]
[1753035904195,1e-08,3746.9,3746.8,8.20044416]
[1753035906804,0.002,3747.4,3747.3,2.66858805]
[1753035907329,0.002,3747.4,3747.3,3.13008805]
[1753035908112,0.002,3747.4,3747.3,11.36820632]
[1753035908315,0.002,3747.4,3747.3,11.34152044]
[1753035908857,0.002,3747.4,3747.3,3.93108805]
[1753035908999,0.002,3747.4,3747.3,2.66858805]
[1753035909341,0.002,3747.4,3747.1,2.6686749]
[1753035909342,0.3921,3747.4,3746.8,2.668881]
[1753035909496,0.002,3747.4,3747.0,2.66875334]
[1753035909693,0.002,3747.4,3746.8,6.93589403]
[1753035909917,0.002,3747.4,3746.9,2.66885767]
[1753035910118,0.002,3747.4,3746.8,6.93593222]
[1753035910326,0.26744943,3747.3,3746.5,2.66915736]
[1753035910542,2.66865926,3747.2,3746.3,3.13073696]
[1753035910704,3.05877233,3747.2,3746.5,2.66910912]
[1753035910908,3.05877233,3747.2,3746.5,6.93510912]
[1753035911109,2.66875174,3747.1,3746.5,4.266]
[1753035911301,0.59948985,3747.0,3746.4,6.93520297]
[1753035911525,0.59948985,3747.0,3746.4,4.266]
[1753035911705,0.3901,3747.2,3746.4,4.266]
[1753035911927,2.66861283,3747.3,3746.6,2.6690415]
[1753035912319,0.002,3747.4,3746.4,6.93522664]
[1753035912320,2.66867831,3747.2,3746.5,2.66914325]
[1753035912711,0.002,3747.4,3745.9,4.7275]
[1753035912911,2.66889914,3746.9,3746.2,2.66934972]
[1753035913118,0.1328,3746.4,3746.3,2.66930037]
[1753035913433,0.1348,3747.4,3747.2,2.66862499]
[1753035914215,0.1348,3747.4,3747.1,2.66872427]
[1753035914720,0.1348,3747.4,3746.9,2.66880443]
[1753035914929,0.002,3747.4,3746.7,7.06676274]
[1753035915130,0.1328,3747.2,3746.7,7.06676274]
[1753035915337,2.66877857,3747.1,3746.4,6.93420264]
[1753035915502,2.66858866,3747.3,3746.4,6.93420264]
[1753035915503,0.1328,3746.9,3746.4,4.265]
[1753035915701,0.002,3747.4,3746.5,0.4615]
[1753035915901,0.1328,3746.9,3746.5,4.265]
[1753035916124,0.02365095,3746.9,3746.5,6.93410604]
[1753035916443,0.02365095,3746.9,3746.5,4.265]
[1753035916610,0.02365095,3746.9,3746.7,2.66896179]
[1753035916807,0.02365095,3746.9,3746.5,7.39563238]
[1753035917032,0.02365095,3746.9,3746.5,7.3956397]
[1753035917367,0.02365095,3746.9,3746.5,4.265]
[1753035917741,0.02365095,3746.9,3746.5,4.7265]
[1753035918273,0.02365095,3746.9,3746.7,2.66901473]
[1753035918763,0.02365095,3746.9,3746.8,3.13044416]
[1753035919747,0.02365095,3746.9,3746.5,4.264]
[1753035919748,0.002,3747.4,3746.5,4.264]
[1753035919942,0.1328,3747.3,3746.8,2.66887701]
[1753035920128,0.1328,3747.3,3746.9,4.264]
[1753035920334,0.41352669,3747.3,3746.8,2.66893886]
[1753035920666,0.41352669,3747.3,3746.6,0.1328]
[1753035920842,0.1328,3746.9,3746.7,4.264]
[1753035922499,0.1328,3746.9,3746.8,3.13044416]
[1753035923220,0.1328,3746.9,3746.6,4.263]
[1753035923702,2.66896789,3746.8,3746.3,0.1328]
[1753035923850,0.1328,3746.6,3745.9,0.001]
[1753035924057,0.1328,3746.2,3745.9,2.67052871]
[1753035924257,4.263,3747.1,3745.9,0.001]
[1753035924467,2.66931053,3746.3,3745.9,0.001]
[1753035924691,2.66936077,3746.3,3745.9,0.001]
[1753035924893,0.26693608,3746.2,3745.9,0.001]
[1753035925256,2.93633165,3746.2,3745.9,0.001]
[1753035926775,0.26693608,3746.2,3745.9,0.001]
[1753035927394,2.93632012,3746.2,3745.9,0.001]
[1753035928001,0.26693608,3746.2,3745.9,0.001]
[1753035928632,2.66938568,3746.2,3745.9,0.001]
[1753035929278,2.66944402,3746.1,3745.9,0.001]
[1753035929478,2.66945564,3746.1,3745.9,0.001]
[1753035930016,2.66951414,3746.0,3745.9,0.001]
[1753035930189,0.53389443,3746.0,3745.9,0.001]
[1753035930508,2.66951414,3746.0,3745.9,0.001]
[1753035932932,0.3006,3747.3,3745.9,1.243]
[1753035933082,2.66929907,3746.4,3745.9,0.001]
[1753035933282,2.66950581,3746.1,3745.9,0.001]
[1753035933932,2.66951414,3746.0,3745.9,0.001]
[1753035934085,2.66947032,3746.1,3745.9,0.001]
[1753035934287,3.20334799,3746.1,3745.9,0.001]
[1753035934702,2.66951414,3746.0,3745.9,0.001]
[1753035935102,9.93051414,3746.0,3745.9,0.001]
[1753035935402,10.05411414,3746.0,3745.9,0.001]
[1753035935624,9.93051414,3746.0,3745.9,0.001]
[1753035935933,11.25626035,3746.0,3745.9,0.001]
[1753035936454,6.99526035,3746.0,3745.9,0.001]
[1753035936741,11.25626035,3746.0,3745.9,0.001]
[1753035937547,11.37986035,3746.0,3745.9,0.001]
[1753035938265,11.25626035,3746.0,3745.9,0.001]
[1753035938748,6.99526035,3746.0,3745.9,0.001]
[1753035939055,11.25626035,3746.0,3745.9,0.001]
[1753035939549,6.99526035,3746.0,3745.9,0.001]
[1753035939753,11.25526035,3746.0,3745.9,0.001]
[1753035941039,6.99526035,3746.0,3745.9,0.001]
[1753035941247,11.25526035,3746.0,3745.9,0.001]
[1753035941729,6.99526035,3746.0,3745.9,0.001]
[1753035941931,9.92951414,3746.0,3745.9,0.001]
[1753035942550,5.66951414,3746.0,3745.9,0.001]
[1753035943084,2.66887293,3746.9,3745.9,1.2306]
[1753035943289,2.67055778,3747.4,3745.9,1.2306]
[1753035943290,8.0706,3747.3,3746.0,0.4424]
[1753035943494,0.1328,3746.7,3746.6,3.45628663]
[1753035943690,0.1328,3746.9,3746.7,2.669015]
[1753035944058,0.1328,3746.9,3746.8,0.4424]
[1753035944257,0.1328,3746.9,3746.8,3.11134416]
[1753035946308,0.1328,3746.9,3746.8,0.4424]
[1753035946507,0.1328,3746.9,3746.5,0.5752]
[1753035946713,3.0,3747.1,3746.3,2.66927885]
[1753035946891,0.1328,3746.7,3746.4,2.66922306]
[1753035947095,0.1328,3746.7,3746.5,0.4424]
[1753035947818,0.1328,3746.7,3746.3,2.66927795]
[1753035948002,2.66906272,3746.7,3745.9,0.001]
[1753035948341,0.1328,3746.4,3745.9,2.67056]
[1753035948802,0.1328,3746.4,3746.0,3.1119037]
[1753035948973,0.1328,3746.4,3746.0,0.4424]
[1753035949173,0.1328,3746.4,3746.1,0.4424]
[1753035949376,3.0,3747.2,3746.5,2.66910842]
[1753035949587,0.1328,3746.8,3746.6,0.4424]
[1753035949787,0.1328,3746.8,3746.7,0.4424]
[1753035950334,0.1328,3747.2,3747.0,2.66878174]
[1753035950632,0.1328,3747.2,3746.7,2.66901534]
[1753035950839,0.1328,3747.2,3746.6,2.80188415]
[1753035951125,0.1348,3747.4,3747.3,2.66858805]
[1753035951512,0.1348,3747.4,3747.3,3.11098805]
[1753035951875,0.002,3747.4,3747.3,4.05198805]
[1753035952084,0.002,3747.4,3747.3,4.07867393]
[1753035952315,0.002,3747.4,3747.3,4.72672849]
[1753035954911,0.002,3747.4,3747.3,4.05198805]
[1753035956019,0.002,3747.4,3747.3,8.30698805]
[1753035956184,0.002,3747.4,3747.3,4.05198805]
[1753035964027,0.002,3747.4,3747.3,4.07867393]
[1753035964340,0.002,3747.4,3747.3,4.05198805]
[1753035964648,0.002,3747.4,3747.3,5.1495599]
[1753035964832,0.002,3747.4,3747.3,9.4005599]
[1753035965332,0.002,3747.4,3747.3,8.5923599]
[1753035967836,0.002,3747.4,3747.3,4.3413599]
[1753035968043,0.002,3747.4,3747.3,8.5913599]
[1753035971553,0.002,3747.4,3747.3,9.4213599]
[1753035971849,1e-08,3747.6,3747.5,3.49844563]
[1753035972049,1e-08,3747.6,3747.5,12.65662744]
[1753035972251,1e-08,3747.9,3747.8,3.49823202]
[1753035972460,1e-08,3747.9,3747.8,6.52491434]
[1753035972621,1e-08,3747.9,3747.8,11.20263202]
[1753035972817,1e-08,3747.9,3747.8,13.17762095]
[1753035973529,1e-08,3747.9,3747.8,19.58137704]
[1753035975015,1e-08,3747.9,3747.8,13.17662095]
[1753035975329,1e-08,3747.9,3747.8,19.58037704]
[1753035977738,1e-08,3747.9,3747.8,13.17462095]
[1753035979131,1e-08,3747.9,3747.8,8.92862095]
[1753035979550,1e-08,3747.9,3747.8,13.17462095]
[1753035980260,1e-08,3747.9,3747.8,13.17362095]
[1753035983264,1e-08,3747.9,3747.8,17.22848676]
[1753035984366,1e-08,3747.9,3747.8,12.98348676]
[1753035984664,1e-08,3747.9,3747.8,17.22748676]
[1753035985465,1e-08,3747.9,3747.8,16.89748676]
[1753035987350,1e-08,3747.9,3747.8,16.89648676]
[1753035989160,1e-08,3747.9,3747.8,16.89548676]
[1753035989940,1e-08,3747.9,3747.8,11.82348676]
[1753035990147,1e-08,3747.9,3747.8,16.06548676]
[1753035991072,1e-08,3747.9,3747.8,11.82348676]
[1753035991273,1e-08,3747.9,3747.8,16.06448676]
[1753035992738,1e-08,3747.9,3747.8,11.82348676]
[1753035992938,1e-08,3747.9,3747.8,16.06448676]
[1753035993969,1e-08,3747.9,3747.8,16.06348676]
[1753035996774,1e-08,3747.9,3747.8,16.06248676]
[1753036000097,1e-08,3747.9,3747.8,8.36808676]
[1753036000252,1e-08,3747.9,3747.8,10.76489783]
[1753036000588,1e-08,3747.9,3747.8,6.52589783]
[1753036000966,1e-08,3747.9,3747.8,2.80103202]
[1753036001186,1e-08,3747.9,3747.8,7.03903202]
[1753036001888,1e-08,3747.9,3747.8,2.80103202]
[1753036002213,1e-08,3747.9,3747.8,7.03903202]
[1753036003159,1e-08,3747.9,3747.8,2.80103202]
[1753036003359,1e-08,3747.9,3747.8,7.03803202]
[1753036004092,1e-08,3747.9,3746.8,0.7559]
[1753036004255,2.66816084,3747.9,3747.2,2.66863725]
[1753036004582,0.53362386,3747.8,3747.4,2.66850632]
[1753036004776,0.1236,3747.8,3747.4,2.66850632]
[1753036004979,0.1236,3747.8,3747.3,6.90555798]
[1753036005297,0.1236,3747.8,3747.4,2.66849781]
[1753036005984,0.1236,3747.8,3747.4,2.66851683]
[1753036007107,2.66832904,3747.7,3747.1,2.66871727]
[1753036007294,3.07103017,3747.8,3747.2,6.90561651]
[1753036007605,0.40276913,3747.8,3747.3,2.66856129]
[1753036008003,0.40276913,3747.8,3747.4,2.6684842]
[1753036008585,0.40276913,3747.8,3747.3,2.66856772]
[1753036008980,1e-08,3747.9,3747.0,0.001]
[1753036008981,0.43068845,3747.7,3747.0,0.001]
[1753036009274,2.66842772,3747.6,3747.1,4.235]
[1753036009484,0.1236,3747.5,3747.1,4.235]
[1753036010484,2.66863629,3747.3,3747.0,0.001]
[1753036010674,2.66863629,3747.3,3747.0,4.236]
[1753036010878,3.21470466,3747.3,3747.0,4.236]
[1753036011076,0.54606837,3747.3,3747.0,0.001]
[1753036011405,2.66843013,3747.6,3747.0,0.001]
[1753036011610,2.66844742,3747.5,3747.0,0.001]
[1753036012238,2.66858885,3747.3,3747.0,0.001]
[1753036012507,2.66853349,3747.4,3747.0,0.001]
[1753036012709,2.6683858,3747.6,3747.0,0.001]
[1753036012913,2.94766489,3747.5,3747.0,0.001]
[1753036014215,0.1328,3747.4,3747.0,0.001]
[1753036014721,2.80131747,3747.4,3747.0,0.001]
[1753036014888,0.1328,3747.4,3747.0,0.001]
[1753036015395,2.80131788,3747.4,3747.0,0.001]
[1753036016425,3.38856845,3747.4,3747.0,0.001]
[1753036016624,0.72005057,3747.4,3747.0,0.001]
[1753036017524,3.38857277,3747.4,3747.0,0.001]
[1753036017730,0.72005057,3747.4,3747.0,0.001]
[1753036017936,0.1236,3747.3,3747.0,0.001]
[1753036018430,2.66860977,3747.3,3747.0,0.001]
[1753036019631,0.1328,3747.4,3747.0,0.001]
[1753036020598,2.80131693,3747.4,3747.0,0.001]
[1753036020996,0.1328,3747.4,3747.0,0.001]
[1753036021213,0.29248661,3747.3,3747.0,0.001]
[1753036021834,2.96109266,3747.3,3747.0,0.001]
[1753036022337,0.29248661,3747.3,3747.0,0.001]
[1753036023015,0.1328,3747.4,3747.1,2.66868494]
[1753036023637,0.1328,3747.4,3747.0,2.6697871]
[1753036023814,0.1328,3747.4,3747.1,2.66872968]
[1753036024936,0.1328,3747.4,3747.0,2.66977864]
[1753036025232,0.1328,3747.4,3747.1,2.66871068]
[1753036025731,0.1328,3747.4,3747.2,0.756]
[1753036025933,1e-08,3747.9,3747.3,4.52556581]
[1753036026137,0.1328,3747.8,3747.3,4.52556581]
[1753036026437,0.1328,3747.8,3747.4,3.13921683]
[1753036026634,0.1328,3747.8,3747.4,2.66851683]
[1753036027038,0.1328,3747.8,3747.2,0.8888]
[1753036027226,0.1328,3747.8,3747.4,2.66851182]
[1753036027935,0.1348,3747.8,3747.4,2.66851182]
[1753036028302,0.1348,3747.8,3747.3,2.66858805]
[1753036028508,0.1348,3747.8,3747.5,2.66838943]
[1753036029334,0.1348,3747.8,3747.5,3.13908943]
[1753036029530,0.1348,3747.8,3747.2,0.8888]
[1753036029531,0.1348,3747.8,3747.6,0.4707]
[1753036029741,0.1348,3747.8,3747.6,3.1390338]
[1753036030044,0.1348,3747.8,3747.6,0.4707]
[1753036030208,0.1348,3747.8,3747.6,3.13906295]
[1753036030820,0.1348,3747.8,3747.6,0.4707]
[1753036031024,0.1348,3747.8,3747.7,0.4707]
[1753036031751,0.1348,3747.8,3747.5,2.66843499]
[1753036031913,0.1348,3747.8,3747.6,2.66836328]
[1753036032114,0.1348,3747.8,3747.5,2.66842934]
[1753036032509,0.1348,3747.8,3747.5,3.13912934]
[1753036033415,0.1348,3747.8,3747.6,0.4707]
[1753036034228,0.1348,3747.8,3747.4,2.66849237]
[1753036034229,0.1348,3747.8,3747.5,2.66839976]
[1753036034449,0.1348,3747.8,3747.6,2.66836597]
[1753036034930,0.1348,3747.8,3747.6,3.13906597]
[1753036035312,0.1348,3747.8,3747.6,0.4707]
[1753036035636,0.1348,3747.8,3747.6,3.13905003]
[1753036035843,0.1348,3747.8,3747.6,0.4707]
[1753036036050,0.1348,3747.8,3747.4,3.13918628]
[1753036036358,0.1348,3747.8,3747.5,0.4707]
[1753036036547,0.1348,3747.8,3747.5,3.13914294]
[1753036037158,0.1348,3747.8,3747.7,2.66830322]
[1753036037358,0.002,3747.8,3747.7,3.51308625]
[1753036037580,0.002,3747.8,3747.7,3.64588625]
[1753036037858,0.002,3747.8,3747.7,4.11658625]
[1753036038059,0.002,3747.8,3747.7,5.95687893]
[1753036038259,0.002,3747.8,3747.7,5.9301959]
[1753036039838,0.002,3747.8,3747.7,10.1531959]
[1753036045238,0.002,3747.8,3747.7,13.1531959]
[1753036047370,1e-08,3747.9,3747.8,3.49953202]
[1753036047570,1e-08,3747.9,3747.8,9.96774721]
[1753036047779,1e-08,3747.9,3747.8,9.94106489]
[1753036048272,1e-08,3747.9,3747.8,12.94106489]
[1753036051188,1e-08,3747.9,3747.8,17.15906489]
[1753036051979,1e-08,3747.9,3747.8,12.94106489]
[1753036052186,1e-08,3747.9,3747.8,17.15806489]
[1753036052478,1e-08,3747.9,3747.8,12.94106489]
[1753036052641,1e-08,3748.2,3748.1,2.66801846]
[1753036052847,1e-08,3748.2,3748.1,12.91288695]
[1753036053056,1e-08,3748.2,3748.1,13.47980677]
[1753036054576,1e-08,3748.2,3748.1,13.67639704]